fUST/lending_fUST_20240118
["ID","MTS","AMOUNT","RATE_DAILY","PERIOD"]
[312026748,1705559444420,-266.13063818,0.00031999,2]
[312026750,1705559444429,-500.0,0.00031999,2]
[312026752,1705559444438,-500.0,0.00031999,2]
[312026763,1705559444519,-500.0,0.00031999,2]
[312026765,1705559444530,-500.0,0.00031999,2]
[312026767,1705559444540,-176.33403074,0.00031999,2]
[312026769,1705559444550,-500.0,0.00031999,2]
[312026771,1705559444559,-500.0,0.00031999,2]
[312026773,1705559444568,-500.0,0.00031999,2]
[312026775,1705559444577,-417.928276,0.00031999,2]
[312026777,1705559444586,-284.65901908,0.00031999,2]
[312026779,1705559444595,-500.0,0.00031999,2]
[312026781,1705559444604,-500.0,0.00031999,2]
[312026783,1705559444613,-500.0,0.00031999,2]
[312026785,1705559444622,-500.0,0.00031999,2]
[312026787,1705559444631,-500.0,0.00031999,2]
[312026789,1705559444641,-500.0,0.00031999,2]
[312026791,1705559444650,-500.0,0.00031999,2]
[312026793,1705559444658,-500.0,0.00031999,2]
[312026795,1705559444667,-500.0,0.00031999,2]
[312026797,1705559444676,-500.0,0.00031999,2]
[312026799,1705559444686,-500.0,0.00031999,2]
[312026801,1705559444694,-500.0,0.00031999,2]
[312026803,1705559444703,-500.0,0.00031999,2]
[312026805,1705559444712,-500.0,0.00031999,2]
[312026807,1705559444721,-500.0,0.00031999,2]
[312026809,1705559444731,-42.08986498,0.00031999,2]
[312026950,1705559446175,-198.9993255,0.00029315,2]
[312026952,1705559446185,-4472.73523027,0.00031899,2]
[312026954,1705559446194,-457.91013502,0.00031999,2]
[312026956,1705559446205,-500.0,0.00031999,2]
[312026958,1705559446215,-500.0,0.00031999,2]
[312026960,1705559446224,-500.0,0.00031999,2]
[312026962,1705559446234,-500.0,0.00031999,2]
[312026964,1705559446245,-500.0,0.00031999,2]
[312026966,1705559446254,-500.0,0.00031999,2]
[312026968,1705559446263,-500.0,0.00031999,2]
[312026970,1705559446271,-500.0,0.00031999,2]
[312026972,1705559446280,-500.0,0.00031999,2]
[312026974,1705559446289,-500.0,0.00031999,2]
[312026976,1705559446298,-500.0,0.00031999,2]
[312026978,1705559446308,-500.0,0.00031999,2]
[312026980,1705559446316,-383.06531908,0.00031999,2]
[312026982,1705559446326,-500.0,0.00031999,2]
[312026984,1705559446335,-333.61547291,0.00031999,2]
[312026986,1705559446344,-500.0,0.00031999,2]
[312026988,1705559446354,-500.0,0.00031999,2]
[312026990,1705559446362,-500.0,0.00031999,2]
[312026992,1705559446371,-199.99999999,0.00031999,2]
[312026994,1705559446381,-327770.54430904,0.00032,15]
[312026996,1705559446393,-729.81146932,0.00032,15]
[312027897,1705560088262,-1113.73927963,0.00021999,2]
[312027898,1705560138675,1824.64474457,0.00021999,2]
[312027899,1705560141235,1109.01672269,0.00021999,2]
[312027900,1705560146188,154.93802479,0.00021999,2]
[312027901,1705560156754,1824.64474457,0.00021999,2]
[312027902,1705560159239,1109.01672269,0.00021999,2]
[312027903,1705560164192,238.15953013,0.00021999,2]
[312027904,1705560176676,1824.64474457,0.00021999,2]
[312027905,1705560177238,370.41967765,0.00021999,2]
[312027906,1705560196695,1824.64474457,0.00021999,2]
[312027907,1705560214719,1824.64474457,0.00021999,2]
[312027908,1705560234689,1824.64474457,0.00021999,2]
[312027909,1705560256693,1824.64474457,0.00021999,2]
[312027910,1705560272692,1824.64474457,0.00021999,2]
[312027911,1705560278436,1113.73927963,0.00021999,2]
[312027912,1705560290805,155.92419728,0.00021999,2]
[312027972,1705560638447,-293.23530462,0.00022,4]
[312027974,1705560638456,-644.35261261,0.00023,4]
[312027975,1705560638465,-1709.23979642,0.00024,2]
[312027997,1705560641434,-121.38963164,0.00024,2]
[312027998,1705560641443,-662.5290023,0.00024387,2]
[312028171,1705560643297,-372.74711407,0.00024387,2]
[312028173,1705560643307,-1045.45812768,0.00025,2]
[312028175,1705560643316,-160.83729,0.00026587,2]
[312028177,1705560643325,-1936.11388453,0.00027098,2]
[312028185,1705560643380,-2884.4257639,0.00027098,2]
[312028189,1705560643392,-20079.46035157,0.00027098,2]
[312028191,1705560643401,-158.623386,0.00027397,2]
[312028193,1705560643410,-1165.98922624,0.00027966,3]
[312028195,1705560643419,-2227.29543294,0.00027966,3]
[312028197,1705560643429,-1434.26745287,0.00027992,3]
[312028199,1705560643438,-158.623386,0.00028415,2]
[312028201,1705560643447,-154.93802479,0.00028789,4]
[312028203,1705560643456,-166.666666,0.00028981,2]
[312028205,1705560643466,-276.97569382,0.00029,2]
[312028207,1705560643475,-2455.73923901,0.00029,2]
[312028209,1705560643484,-158.623386,0.00029432,2]
[312028211,1705560643493,-2201.962493,0.00029463,2]
[312028213,1705560643503,-166.666666,0.00029771,2]
[312028215,1705560643515,-200.0,0.00029807,15]
[312028217,1705560643524,-619.8793206,0.000299,2]
[312028219,1705560643533,-507.44515137,0.0003,3]
[312028221,1705560643543,-640.81580837,0.0003,4]
[312028223,1705560643553,-422.0,0.0003,2]
[312028225,1705560643562,-2335.0,0.0003,30]
[312028227,1705560643572,-423.01931939,0.00030397,5]
[312028229,1705560643582,-9552.10396997,0.000304,5]
[312028577,1705560646422,-471.36184441,0.000304,5]
[312029051,1705561832475,-237.43058786,0.00026387,2]
[312029052,1705561832485,-1830.62942806,0.00026388,2]
[312029053,1705561832494,-1045.45812768,0.00026389,2]
[312029054,1705561832507,-166.666666,0.0002641,2]
[312029055,1705561832517,-1090.23247641,0.00026551,2]
[312029056,1705561832533,-2820.67835745,0.00026551,2]
[312029057,1705561832545,-543.11748788,0.00026551,2]
[312029193,1705561841500,-1001.59998594,0.00026551,2]
[312029409,1705561843472,-19444.37169232,0.00026551,2]
[312029411,1705561843482,-166.666666,0.0002713,2]
[312029414,1705561843492,-158.623386,0.00027397,2]
[312029416,1705561843502,-166.666666,0.0002785,2]
[312029418,1705561843513,-831.30139213,0.00027992,3]
[312029420,1705561843523,-4115.22953383,0.00028,2]
[312029422,1705561843532,-413.2528804,0.000283,2]
[312029424,1705561843541,-166.666666,0.0002857,2]
[312029426,1705561843550,-158.623386,0.00028692,2]
[312029427,1705561843560,-3882.37933715,0.00028749,2]
[312029430,1705561843570,-154.93802479,0.00028788,4]
[312029431,1705561843579,-3567.94495465,0.0002888,4]
[312029434,1705561843589,-1600.19987402,0.00029,3]
[312029436,1705561843598,-2455.73923901,0.00029,2]
[312029438,1705561843608,-200.0,0.00029205,15]
[312029440,1705561843617,-166.666666,0.0002929,2]
[312029442,1705561843626,-158.623386,0.00029988,2]
[312029444,1705561843635,-181.75143472,0.0003,4]
[312029446,1705561843644,-379.58408484,0.0003,30]
[312029448,1705561843654,-2491.60757104,0.0003,4]
[312029450,1705561843664,-166.666666,0.0003001,2]
[312029452,1705561843674,-154.93802479,0.000304,2]
[312029453,1705561843683,-195.1690538,0.000304,4]
[312029455,1705561843692,-154.93802479,0.000304,4]
[312029457,1705561843702,-410.41281499,0.000304,2]
[312029459,1705561843711,-283.01176432,0.000304,3]
[312029461,1705561843720,-4459.3054765,0.000304,4]
[312029463,1705561843729,-351.14579978,0.000304,2]
[312029465,1705561843738,-10990.39266955,0.00031,2]
[312029468,1705561843747,-155.0,0.00031,2]
[312029469,1705561843757,-154.05211488,0.00031133,7]
[312029471,1705561843767,-160.67396118,0.00031279,4]
[312029474,1705561843777,-158.623386,0.00031283,2]
[312029476,1705561843786,-153.31253349,0.00031508,7]
[312029477,1705561843795,-150.0,0.00031579,2]
[312029479,1705561843804,-5178.14619186,0.00031635,4]
[312029481,1705561843813,-154.05211488,0.00031853,7]
[312029483,1705561843822,-2491.85870745,0.00031988,4]
[312029485,1705561843831,-379.94198158,0.00031989,2]
[312029488,1705561843840,-187.55268344,0.00031989,2]
[312029489,1705561843850,-500.0,0.00031996,2]
[312029492,1705561843860,-500.0,0.00031996,2]
[312029493,1705561843874,-500.0,0.00031996,2]
[312029496,1705561843883,-500.0,0.00031996,2]
[312029498,1705561843893,-500.0,0.00031996,2]
[312029499,1705561843901,-500.0,0.00031996,2]
[312029502,1705561843911,-500.0,0.00031996,2]
[312029504,1705561843921,-500.0,0.00031996,2]
[312029506,1705561843930,-500.0,0.00031996,2]
[312029507,1705561843939,-188.3828534,0.00031996,2]
[312029510,1705561843949,-500.0,0.00031996,2]
[312029512,1705561843959,-500.0,0.00031996,2]
[312029514,1705561843969,-406.45225528,0.00031996,2]
[312029515,1705561843978,-500.0,0.00031996,2]
[312029518,1705561843987,-500.0,0.00031996,2]
[312029519,1705561843996,-605.80041844,0.00031996,2]
[312029522,1705561844006,-270.79541145,0.00031996,2]
[312029523,1705561844016,-500.0,0.00031996,2]
[312029525,1705561844025,-500.0,0.00031996,2]
[312029528,1705561844035,-500.0,0.00031996,2]
[312029530,1705561844045,-500.0,0.00031996,2]
[312029532,1705561844057,-500.0,0.00031996,2]
[312029534,1705561844066,-500.0,0.00031996,2]
[312029536,1705561844075,-500.0,0.00031996,2]
[312029538,1705561844084,-500.0,0.00031996,2]
[312029540,1705561844093,-500.0,0.00031996,2]
[312029542,1705561844102,-500.0,0.00031996,2]
[312029544,1705561844111,-500.0,0.00031996,2]
[312029546,1705561844120,-500.0,0.00031996,2]
[312029548,1705561844129,-500.0,0.00031996,2]
[312029550,1705561844139,-500.0,0.00031996,2]
[312029552,1705561844148,-500.0,0.00031996,2]
[312029554,1705561844157,-500.0,0.00031996,2]
[312029556,1705561844166,-438.38482622,0.00031996,2]
[312030952,1705562852091,-237.43058786,0.00026549,2]
[312030953,1705562852111,-954.13021078,0.0002655,2]
[312030954,1705562852131,-164.510231,0.00027397,2]
[312030955,1705562852153,-154.93802479,0.00028788,4]
[312030956,1705562852172,-471.36184441,0.0002888,4]
[312030957,1705562852194,-166.666666,0.0002898,2]
[312030958,1705562852213,-164.510231,0.00029178,2]
[312030959,1705562852232,-2455.73923901,0.00029234,2]
[312030960,1705562852252,-2610.6750629,0.00029235,2]
[312030961,1705562852274,-166.666666,0.0002977,2]
[312030962,1705562852293,-219.77894514,0.00029797,4]
[312030963,1705562852313,-5000.0,0.00029863,2]
[312030964,1705562852333,-275.50192026,0.00029896,2]
[312030965,1705562852353,-160.83729,0.00029975,2]
[312030966,1705562852374,-2491.60757104,0.0003,4]
[312030967,1705562852397,-166.666666,0.00030561,2]
[312030968,1705562852417,-201.08171049,0.00030731,4]
[312030969,1705562852437,-164.510231,0.00030959,2]
[312030970,1705562852458,-155.0,0.00031,2]
[312030971,1705562852491,-166.666666,0.00031351,2]
[312030972,1705562852530,-169.2776447,0.000319,2]
[312030973,1705562852571,-5636.08572636,0.00031988,4]
[312030974,1705562852611,-6452.8,0.00031989,3]
[312030975,1705562852732,-2008.32390322,0.00031989,3]
[312031016,1705563032629,-164.510231,0.00027397,2]
[312031018,1705563032639,-201.08171049,0.00030246,4]
[312031020,1705563032648,-164.510231,0.00030247,2]
[312031022,1705563032658,-139.73552845,0.00031989,3]
[312031024,1705563032669,-435.5334042,0.00031989,3]
[312031152,1705563039405,-5375.62173477,0.00031989,3]
[312031330,1705563043092,-308.25933258,0.00031989,3]
[312031332,1705563043101,-871.93201596,0.00031989,3]
[312031334,1705563043112,-509.25612575,0.00031989,3]
[312031336,1705563043123,-9545.97185829,0.00031989,3]
[312031337,1705563043133,-9105.97,0.00031989,3]
[312031339,1705563043142,-877.77514512,0.00031989,4]
[312031341,1705563043151,-205.07888746,0.00031989,4]
[312031343,1705563043160,-4459.3054765,0.00031989,4]
[312031353,1705563043255,-410.41281499,0.00031989,2]
[312031356,1705563043265,-283.01176432,0.00031989,3]
[312031358,1705563043274,-351.14579978,0.00031989,2]
[312031360,1705563043283,-154.93802479,0.00031989,2]
[312031362,1705563043292,-154.93802479,0.00031989,4]
[312031364,1705563043301,-195.1690538,0.00031989,4]
[312031366,1705563043310,-150.0,0.0003199,2]
[312031368,1705563043323,-12907.09282827,0.0003199,4]
[312031370,1705563043333,-279.39513093,0.00031997,4]
[312031372,1705563043342,-712.59204139,0.00031997,4]
[312031374,1705563043351,-1492.73862253,0.00031997,4]
[312031420,1705563049187,-464.64738838,0.00031989,3]
[312031490,1705563952105,-164.510231,0.00027397,2]
[312031491,1705563952128,-5000.0,0.00027991,5]
[312031492,1705563952152,-1955.323145,0.00027992,3]
[312031493,1705563952173,-456.24206716,0.00027992,3]
[312031494,1705563952196,-154.93802479,0.00028797,4]
[312031495,1705563952217,-1000.0,0.00029,29]
[312031496,1705563952238,-160.83729,0.00029738,2]
[312031497,1705563952261,-166.666666,0.00029764,2]
[312031498,1705563952282,-183.66794684,0.0002989,2]
[312031499,1705563952302,-507.44515137,0.0003,3]
[312031500,1705563952326,-1000.0,0.0003,30]
[312031501,1705563952346,-201.08171049,0.0003,4]
[312031502,1705563952367,-166.666666,0.00030576,2]
[312031503,1705563952390,-1000.0,0.00031,31]
[312031504,1705563952410,-155.0,0.0003104,2]
[312031505,1705563952433,-166.666666,0.00031387,2]
[312031506,1705563952453,-200.0,0.00031676,15]
[312031507,1705563952474,-3927.34,0.00031989,3]
[312031508,1705563952493,-410.41281499,0.00031989,2]
[312031509,1705563952517,-283.01176432,0.00031989,3]
[312031510,1705563952537,-154.93802479,0.00031989,2]
[312031511,1705563952558,-351.14579978,0.00031989,2]
[312031512,1705563952576,-154.93802479,0.00031989,4]
[312031513,1705563952597,-195.1690538,0.00031989,4]
[312031514,1705563952617,-4459.3054765,0.00031989,4]
[312031515,1705563952636,-717.58716081,0.00031997,4]
[312031516,1705563952656,-465.22242604,0.00031997,4]
[312031517,1705563952676,-2305.76723393,0.00031997,3]
[312031518,1705563952695,-1611.96814653,0.00031998,2]
[312031519,1705563952715,-903.22401,0.00031999,2]
[312031520,1705563952735,-903.22401,0.00031999,2]
[312031521,1705563952754,-361.82445243,0.00031999,2]
[312031522,1705563952774,-40023.74549781,0.00031999,2]
[312031523,1705563952793,-174.83,0.00031999,2]
[312031524,1705563952811,-174.83,0.00031999,2]
[312031525,1705563952831,-174.83,0.00031999,2]
[312031526,1705563952852,-500.0,0.00031999,2]
[312031527,1705563952872,-578.09655859,0.00031999,2]
[312031528,1705563952895,-500.0,0.00031999,2]
[312031529,1705563952915,-500.0,0.00031999,2]
[312031530,1705563952937,-500.0,0.00031999,2]
[312031531,1705563952957,-500.0,0.00031999,2]
[312031532,1705563952978,-500.0,0.00031999,2]
[312031533,1705563952999,-500.0,0.00031999,2]
[312031534,1705563953019,-463.48025107,0.00031999,2]
[312031535,1705563953039,-481.86799737,0.00031999,2]
[312031536,1705563953061,-500.0,0.00031999,2]
[312031537,1705563953081,-179.83919146,0.00031999,2]
[312031538,1705563953103,-500.0,0.00031999,2]
[312031539,1705563953125,-500.0,0.00031999,2]
[312031540,1705563953145,-500.0,0.00031999,2]
[312031541,1705563953167,-500.0,0.00031999,2]
[312031542,1705563953188,-295.40303511,0.00031999,2]
[312031543,1705563953208,-500.0,0.00031999,2]
[312031544,1705563953229,-367.40022956,0.00031999,2]
[312031545,1705563953250,-500.0,0.00031999,2]
[312031546,1705563953270,-500.0,0.00031999,2]
[312031547,1705563953290,-500.0,0.00031999,2]
[312031548,1705563953312,-500.0,0.00031999,2]
[312031549,1705563953334,-500.0,0.00031999,2]
[312031550,1705563953354,-332.69506889,0.00031999,2]
[312031558,1705564032093,-838.32885214,0.00027992,3]
[312031559,1705564032114,-164.510231,0.00030137,2]
[312031560,1705564032136,-2242.39866587,0.00031038,10]
[312031561,1705564032156,-200.41,0.000318,4]
[312031562,1705564032179,-2583.08150007,0.0003199,3]
[312031614,1705564231867,-201.08171049,0.00030472,4]
[312031615,1705564231879,-166.666666,0.00030473,2]
[312031616,1705564231890,-118.28424922,0.00031304,2]
[312031628,1705564238311,-48.38241678,0.00031304,2]
[312031629,1705564238320,-4459.3054765,0.0003199,4]
[312031630,1705564238329,-410.41281499,0.0003199,2]
[312031631,1705564238339,-283.01176432,0.0003199,3]
[312031632,1705564238349,-6425.79,0.0003199,3]
[312031633,1705564238360,-190.87703415,0.00031999,2]
[312031634,1705564238371,-180.1763723,0.00031999,4]
[312031635,1705564238382,-167.58269975,0.00031999,2]
[312031636,1705564238392,-222.56205197,0.00031999,4]
[312031637,1705564238402,-1998.96829088,0.00032,15]
[312031638,1705564238414,-2340.82838544,0.00032,15]
[312031639,1705564239016,-540.02676119,0.00032,15]
[312031659,1705564240825,-4002.48000086,0.00032,15]
[312031845,1705564242906,-4606.40336,0.0003199,3]
[312031847,1705564242917,-748.42664,0.0003199,3]
[312031849,1705564242926,-2817.29892869,0.00032,15]
[312031851,1705564242938,-8144.36329157,0.00032,15]
[312031853,1705564242947,-3133.37588219,0.00032,2]
[312031855,1705564242956,-2080.54656391,0.00032,15]
[312031858,1705564242967,-9727.20098137,0.00032,15]
[312031860,1705564242978,-16054.25600514,0.00032,15]
[312031862,1705564242988,-663.0,0.00032,15]
[312031865,1705564243008,-333.92645003,0.00032,15]
[312032114,1705565139102,-1107.76897883,0.00027992,3]
[312032115,1705565139128,-154.93802479,0.00028798,4]
[312032116,1705565139150,-166.666666,0.00029566,2]
[312032117,1705565139170,-231.41192771,0.000299,2]
[312032118,1705565139190,-201.08171049,0.0003,4]
[312032119,1705565139210,-164.510231,0.00030137,2]
[312032120,1705565139229,-173.953398,0.00030155,2]
[312032121,1705565139249,-697.8261007,0.00030311,2]
[312032122,1705565139268,-166.666666,0.00030372,2]
[312032123,1705565139289,-8.41405252,0.00030372,2]
[312032222,1705565438392,-340.49820463,0.00027992,3]
[312032224,1705565438407,-251.0,0.0003,2]
[312032226,1705565438419,-5533.61937213,0.00030372,2]
[312032228,1705565438430,-267.67444864,0.00030372,2]
[312032494,1705565441150,-490.1510355,0.00030372,2]
[312032698,1705565443053,-3038.76895187,0.00030372,2]
[312034231,1705566349106,-726.3443389,0.00027992,3]
[312034232,1705566349126,-458.00937643,0.00028,3]
[312034237,1705566564090,-20171.56709329,0.00028,3]
[312034238,1705566564110,-190.142785,0.00028,2]
[312034239,1705566564130,-154.27461847,0.00028272,2]
[312034241,1705566607395,100.63130531,0.00027992,3]
[312034283,1705566632230,-2174.70378063,0.00027992,3]
[312034291,1705566632292,-2686.06045033,0.00027992,3]
[312034293,1705566632311,-815.94988363,0.00027992,3]
[312034835,1705566643201,-1297.3781602,0.00027992,3]
[312037087,1705567760111,-154.9690062,0.00025668,4]
[312037088,1705567760132,-4718.82684458,0.00025668,2]
[312037089,1705567760153,-1045.45812768,0.00025668,2]
[312037090,1705567760174,-5179.86226667,0.00025669,2]
[312037091,1705567760195,-166.666666,0.00025682,2]
[312037092,1705567760216,-160.83729,0.00025786,2]
[312037093,1705567760237,-912.13663643,0.00025892,2]
[312037094,1705567760259,-492.7898727,0.00025925,2]
[312037095,1705567760279,-174.428817,0.00025985,2]
[312037096,1705567760301,-526.29712741,0.00026,2]
[312037097,1705567760323,-166.666666,0.00026382,2]
[312037098,1705567760344,-386.12132242,0.00026382,2]
[312037099,1705567760364,-166.666666,0.00027082,2]
[312037100,1705567760386,-205.07888746,0.0002743,2]
[312037101,1705567760406,-166.666666,0.00027783,2]
[312037102,1705567760427,-169.27764469,0.000279,2]
[312037103,1705567760450,-2649.29,0.00027982,3]
[312037104,1705567760472,-4658.31,0.00027982,3]
[312037105,1705567760582,-3881.93,0.00027982,3]
[312037106,1705567760604,-3234.94,0.00027982,3]
[312037107,1705567760627,-984.20573231,0.0002799,2]
[312037108,1705567760648,-279.39513093,0.00027991,2]
[312037109,1705567760669,-348.36157568,0.00027991,2]
[312037110,1705567760692,-6124.13005384,0.00027992,3]
[312037111,1705567760722,-19231.02953243,0.00027992,3]
[312037112,1705567760742,-261.3528024,0.00027992,2]
[312037113,1705567760764,-3318.9973618,0.00027992,2]
[312037114,1705567760784,-155.35099403,0.00027992,2]
[312037115,1705567760806,-158.32285423,0.00027992,2]
[312037116,1705567760825,-1921.70075971,0.00027992,2]
[312037117,1705567760849,-27058.22063567,0.00027992,3]
[312037118,1705567760873,-5682.22633349,0.00027992,3]
[312037119,1705567760893,-151.0,0.00027992,2]
[312037120,1705567760912,-299.196712,0.00027992,2]
[312037121,1705567760933,-157.67358,0.00027992,2]
[312037122,1705567760952,-157.67358,0.00027992,2]
[312037123,1705567760973,-157.67358,0.00027992,2]
[312037124,1705567760991,-157.67358,0.00027992,2]
[312037125,1705567761014,-812.901609,0.00027999,2]
[312037126,1705567761035,-812.901609,0.00027999,2]
[312037127,1705567761056,-812.901609,0.00027999,2]
[312037128,1705567761076,-812.901609,0.00027999,2]
[312037129,1705567761095,-812.901609,0.00027999,2]
[312037130,1705567761115,-812.901609,0.00027999,2]
[312037131,1705567761136,-157.67358,0.00027999,2]
[312037132,1705567761155,-157.67358,0.00027999,2]
[312037133,1705567761174,-157.67358,0.00027999,2]
[312037134,1705567761194,-157.67358,0.00027999,2]
[312037135,1705567761212,-157.67358,0.00027999,2]
[312037136,1705567761232,-157.67358,0.00027999,2]
[312037137,1705567761252,-157.67358,0.00027999,2]
[312037138,1705567761272,-157.67358,0.00027999,2]
[312037139,1705567761291,-157.67358,0.00027999,2]
[312037140,1705567761311,-157.67358,0.00027999,2]
[312037141,1705567761333,-500.0,0.00027999,2]
[312037142,1705567761354,-500.0,0.00027999,2]
[312037143,1705567761374,-500.0,0.00027999,2]
[312037144,1705567761393,-500.0,0.00027999,2]
[312037145,1705567761413,-500.0,0.00027999,2]
[312037146,1705567761434,-500.0,0.00027999,2]
[312037147,1705567761455,-500.0,0.00027999,2]
[312037148,1705567761475,-500.0,0.00027999,2]
[312037149,1705567761496,-500.0,0.00027999,2]
[312037150,1705567761516,-500.0,0.00027999,2]
[312037151,1705567761536,-290.94193031,0.00027999,2]
[312037152,1705567761556,-553.42039565,0.00027999,2]
[312037153,1705567761576,-500.0,0.00027999,2]
[312037154,1705567761598,-500.0,0.00027999,2]
[312037155,1705567761619,-500.0,0.00027999,2]
[312037156,1705567761638,-225.09660558,0.00027999,2]
[312037157,1705567761658,-340.96883396,0.00027999,2]
[312037158,1705567761682,-500.0,0.00027999,2]
[312037159,1705567761703,-500.0,0.00027999,2]
[312037160,1705567761724,-500.0,0.00027999,2]
[312037161,1705567761745,-322.42758599,0.00027999,2]
[312037196,1705567832457,-154.9690062,0.00025197,4]
[312037198,1705567832466,-770.39246725,0.00027717,2]
[312037200,1705567832475,-518.7799917,0.00027962,2]
[312037225,1705567838831,-529.05571518,0.00027962,2]
[312037227,1705567838840,-1300.05,0.0002799,3]
[312037229,1705567838850,-2479.11,0.0002799,3]
[312037231,1705567838859,-527.57753708,0.00027991,2]
[312037233,1705567838868,-280.67003153,0.00027992,2]
[312037235,1705567838877,-181.58608473,0.00027992,3]
[312037237,1705567838887,-438.931266,0.00027992,2]
[312037239,1705567838896,-438.931266,0.00027992,2]
[312037241,1705567838904,-438.931266,0.00027992,2]
[312037243,1705567838913,-6.12850393,0.00027992,2]
[312037245,1705567838925,-432.80276207,0.00027992,2]
[312037246,1705567838934,-354.41793,0.00027992,2]
[312037247,1705567838946,-84.513336,0.00027992,2]
[312037248,1705567838956,-332.5697537,0.00027992,2]
[312037791,1705567844076,-106.3615123,0.00027992,2]
[312037793,1705567844085,-286.14187201,0.00027998,2]
[312037799,1705567844132,-1614.67076227,0.00027998,2]
[312037801,1705567844141,-438.931266,0.00027999,2]
[312037803,1705567844150,-319.39797176,0.00027999,2]
[312037805,1705567844161,-119.53329424,0.00027999,2]
[312037807,1705567844170,-438.931266,0.00027999,2]
[312037809,1705567844179,-438.931266,0.00027999,2]
[312037811,1705567844188,-438.931266,0.00027999,2]
[312037813,1705567844197,-438.931266,0.00027999,2]
[312037816,1705567844206,-438.931266,0.00027999,2]
[312037819,1705567844215,-438.931266,0.00027999,2]
[312037821,1705567844224,-438.931266,0.00027999,2]
[312037824,1705567844233,-438.931266,0.00027999,2]
[312037834,1705567844319,-3318.9973618,0.00027999,2]
[312037836,1705567844329,-290.00241025,0.00028,2]
[312037838,1705567844338,-17653.00256767,0.00028,8]
[312037840,1705567844349,-5144.21208558,0.00028,8]
[312038687,1705567945390,-237.43058786,0.00027998,2]
[312038688,1705567945411,-361.82445243,0.00027998,2]
[312038689,1705567945434,-154.9690062,0.00027999,4]
[312038690,1705567945453,-2305.76723393,0.00027999,2]
[312038691,1705567945473,-6940.00871958,0.00028,8]
[312038722,1705568846097,-154.9690062,0.00025198,4]
[312038723,1705568846118,-240.92879434,0.00025898,2]
[312038727,1705568956121,-154.9690062,0.00023306,4]
[312038728,1705568956152,-1045.45812768,0.00025,2]
[312038729,1705568956185,-2265.58445018,0.00025886,2]
[312038784,1705569032594,-154.9690062,0.00023297,4]
[312038785,1705569032604,-3837.34507828,0.00024885,2]
[312038899,1705569039038,-3483.390888,0.00024884,2]
[312038900,1705569039049,-21062.65492172,0.00024885,2]
[312038901,1705569039059,-877.77514512,0.0002586,2]
[312038902,1705569039069,-807.28706509,0.00025876,3]
[312038903,1705569039094,-3739.17293491,0.00025876,3]
[312038904,1705569039104,-1128.25899598,0.00025883,2]
[312038905,1705569039113,-21671.8470958,0.00025884,2]
[312038906,1705569039124,-452.21175221,0.00025884,2]
[312038907,1705569039134,-687.23089543,0.00025884,2]
[312038908,1705569039143,-500.0,0.00025885,4]
[312038909,1705569039152,-500.0,0.00025885,4]
[312038910,1705569039161,-500.0,0.00025885,4]
[312038911,1705569039171,-462.84297544,0.00025885,4]
[312038912,1705569039180,-500.0,0.00025885,4]
[312038913,1705569039189,-500.0,0.00025885,4]
[312038914,1705569039199,-500.0,0.00025885,4]
[312038915,1705569039208,-500.0,0.00025885,4]
[312038916,1705569039218,-454.3887334,0.00025885,4]
[312038917,1705569039227,-500.0,0.00025885,4]
[312038918,1705569039237,-492.46117481,0.00025885,4]
[312038919,1705569039247,-500.0,0.00025885,4]
[312038921,1705569039256,-500.0,0.00025885,4]
[312038923,1705569039265,-500.0,0.00025885,4]
[312038925,1705569039274,-500.0,0.00025885,4]
[312038927,1705569039283,-500.0,0.00025885,4]
[312038929,1705569039292,-500.0,0.00025885,4]
[312038931,1705569039302,-500.0,0.00025885,4]
[312038933,1705569039310,-500.0,0.00025885,4]
[312038935,1705569039319,-500.0,0.00025885,4]